lending/lending_fUSD_20240705
["ID","MTS","AMOUNT","RATE_DAILY","PERIOD"]
[331259330,1720167782337,-2100.0,0.00044404,30]
[331259331,1720167782365,-500.0,0.00044602,30]
[331259332,1720167782391,-600.0,0.00044952,30]
[331259333,1720167782417,-2100.0,0.00044952,30]
[331259334,1720167782442,-2080.27189365,0.00045,120]
[331259335,1720167782469,-2086.46,0.00045205,120]
[331259336,1720167782494,-600.0,0.000455,30]
[331259337,1720167782520,-2100.0,0.000455,30]
[331259338,1720167782549,-151.08152372,0.00046048,30]
[331259339,1720167782575,-1056.54669527,0.00046048,30]
[331259340,1720167782603,-2086.46,0.00046575,120]
[331259341,1720167782638,-2086.46,0.00047945,120]
[331259342,1720167782668,-2086.46,0.00049315,120]
[331259343,1720167782698,-2086.46,0.00050684,120]
[331259344,1720167782743,-2086.46,0.00052054,120]
[331259345,1720167782782,-873.07810093,0.00052222,120]
[331259346,1720167782829,-2086.46,0.00053424,120]
[331259347,1720167782871,-570768.49848604,0.000535,120]
[331259348,1720167782908,-208.53261117,0.000535,120]
[331259349,1720167782951,-216.76739553,0.000535,120]
[331259350,1720167782998,-235.039,0.000535,30]
[331259351,1720167783031,-183.84444444,0.00053534,120]
[331259352,1720167783069,-151.0,0.00053562,120]
[331259353,1720167783108,-2500.0,0.00053698,120]
[331259354,1720167783144,-2500.0,0.00053698,120]
[331259355,1720167783187,-1141.50555667,0.00053698,120]
[331259356,1720167783224,-7162.4,0.00053704,117]
[331259357,1720167783261,-2008.28199358,0.0005388,30]
[331259358,1720167783299,-205.0,0.000539,120]
[331259359,1720167783334,-4639.97754024,0.00053985,120]
[331259360,1720167783375,-9520.30884527,0.00053985,120]
[331259361,1720167783416,-50000.0,0.00054,54]
[331259362,1720167783452,-120945.63,0.00054,30]
[331259363,1720167783490,-1000.0,0.00054,120]
[331259364,1720167783528,-600.0,0.00054,120]
[331259365,1720167783565,-7315.2517404,0.00054,120]
[331259366,1720167783607,-2000.0,0.00054,30]
[331259367,1720167783646,-2000.0,0.00054,30]
[331259368,1720167783684,-2000.0,0.00054,30]
[331259369,1720167783721,-2000.0,0.00054,30]
[331259370,1720167783757,-2000.0,0.00054,30]
[331259371,1720167783793,-2000.0,0.00054,30]
[331259372,1720167783827,-2000.0,0.00054,30]
[331259373,1720167783864,-2000.0,0.00054,30]
[331259374,1720167783898,-2000.0,0.00054,30]
[331259375,1720167783933,-2000.0,0.00054,30]
[331259376,1720167783968,-1000000.0,0.00054,120]
[331259377,1720167784007,-1000000.0,0.00054,120]
[331259378,1720167784044,-172.0,0.00054,120]
[331259379,1720167784079,-151.14966579,0.0005421,120]
[331259380,1720167784113,-100000.0,0.0005423,120]
[331259381,1720167784141,-180.82635351,0.00054246,120]
[331259382,1720167784170,-1039.01453488,0.00054246,120]
[331259383,1720167784199,-183.84444444,0.00054247,120]
[331259384,1720167784226,-1069.15920388,0.00054321,82]
[331259385,1720167784253,-2218.88593545,0.00054467,120]
[331259386,1720167784281,-268.14150946,0.00054468,120]
[331259387,1720167784588,-428.0045177,0.00054468,120]
[331259388,1720167784643,-222.98006178,0.00054468,120]
[331259389,1720167784669,-2218.88593545,0.00054468,120]
[331259390,1720167784694,-330.13089029,0.00054469,120]
[331259391,1720167784724,-535.48183006,0.00054469,120]
[331259392,1720167784752,-2003.54152635,0.00054469,120]
[331259393,1720167784778,-230.01862371,0.0005447,120]
[331259394,1720167784804,-222.98006178,0.00054471,120]
[331259395,1720167784830,-222.98006178,0.00054471,120]
[331259396,1720167784857,-208.81311248,0.00054471,120]
[331259397,1720167784883,-222.98006178,0.00054472,120]
[331259398,1720167784908,-268.14150946,0.00054472,120]
[331259399,1720167784936,-2003.54152635,0.00054472,120]
[331259400,1720167784962,-428.0045177,0.00054473,120]
[331259401,1720167784989,-226.99264512,0.00054473,120]
[331259402,1720167785014,-428.0045177,0.00054473,120]
[331259403,1720167785041,-200.0,0.00054473,120]
[331259404,1720167785066,-268.14150946,0.00054474,120]
[331259405,1720167785093,-268.14150946,0.00054474,120]
[331259406,1720167785120,-330.13089029,0.00054475,120]
[331259407,1720167785146,-428.0045177,0.00054476,120]
[331259408,1720167785172,-226.99264512,0.00054476,120]
[331259409,1720167785198,-208.81311248,0.00054476,120]
[331259410,1720167785224,-535.48183006,0.00054476,120]
[331259411,1720167785253,-471.24813501,0.00054476,120]
[331259412,1720167785278,-264.18454067,0.00054477,120]
[331259413,1720167785303,-268.14150946,0.00054477,120]
[331259414,1720167785329,-535.48183006,0.00054478,120]
[331259415,1720167785354,-200.0,0.00054478,120]
[331259416,1720167785380,-200.0,0.00054478,120]
[331259417,1720167785407,-222.98006178,0.00054479,120]
[331259418,1720167785433,-471.24813501,0.00054479,120]
[331259419,1720167785459,-535.48183006,0.00054479,120]
[331259420,1720167785486,-268.14150946,0.00054481,120]
[331259421,1720167785513,-208.81311248,0.00054481,120]
[331259422,1720167785539,-230.01862371,0.00054481,120]
[331259423,1720167785566,-2003.54152635,0.00054481,120]
[331259424,1720167785592,-226.99264512,0.00054482,120]
[331259425,1720167785625,-268.14150946,0.00054482,120]
[331259426,1720167785652,-222.98006178,0.00054482,120]
[331259427,1720167785680,-518.88706999,0.00054483,120]
[331259428,1720167785707,-428.0045177,0.00054484,120]
[331259429,1720167785732,-2218.88593545,0.00054485,120]
[331259430,1720167785759,-200.0,0.00054485,120]
[331259431,1720167785785,-208.81311248,0.00054485,120]
[331259432,1720167785813,-518.88706999,0.00054485,120]
[331259433,1720167785840,-428.0045177,0.00054485,120]
[331259434,1720167785871,-535.48183006,0.00054487,120]
[331259435,1720167785897,-471.24813501,0.00054487,120]
[331259436,1720167785924,-535.48183006,0.00054487,120]
[331259437,1720167785951,-208.81311248,0.00054487,120]
[331259438,1720167785978,-264.18454067,0.00054488,120]
[331259439,1720167786005,-268.14150946,0.00054489,120]
[331259440,1720167786032,-518.88706999,0.00054489,120]
[331259441,1720167786059,-268.14150946,0.0005449,120]
[331259442,1720167786086,-200.0,0.0005449,120]
[331259443,1720167786117,-535.48183006,0.0005449,120]
[331259444,1720167786145,-264.18454067,0.0005449,120]
[331259445,1720167786173,-428.0045177,0.0005449,120]
[331259446,1720167786201,-471.24813501,0.0005449,120]
[331259447,1720167786228,-471.24813501,0.00054491,120]
[331259448,1720167786255,-264.18454067,0.00054491,120]
[331259449,1720167786284,-2003.54152635,0.00054491,120]
[331259450,1720167786312,-2218.88593545,0.00054492,120]
[331259451,1720167786340,-264.18454067,0.00054492,120]
[331259452,1720167786374,-428.0045177,0.00054492,120]
[331259453,1720167786402,-2003.54152635,0.00054493,120]
[331259454,1720167786429,-230.01862371,0.00054493,120]
[331259455,1720167786457,-208.81311248,0.00054494,120]
[331259456,1720167786486,-428.0045177,0.00054494,120]
[331259457,1720167786513,-2003.54152635,0.00054494,120]
[331259458,1720167786540,-330.13089029,0.00054495,120]
[331259459,1720167786567,-208.81311248,0.00054495,120]
[331259460,1720167786594,-518.88706999,0.00054495,120]
[331259461,1720167786629,-330.13089029,0.00054496,120]
[331259462,1720167786656,-2218.88593545,0.00054496,120]
[331259463,1720167786684,-518.88706999,0.00054497,120]
[331259464,1720167786711,-518.88706999,0.00054498,120]
[331259465,1720167786737,-518.88706999,0.00054499,120]
[331259466,1720167786764,-330.13089029,0.00054499,120]
[331259467,1720167786793,-264.18454067,0.00054499,120]
[331259468,1720167786820,-222.98006178,0.00054499,120]
[331259469,1720167786851,-264.18454067,0.000545,120]
[331259470,1720167786877,-1000000.0,0.000545,120]
[331259471,1720167786906,-3527.44600035,0.000545,120]
[331259472,1720167794046,-26687.1762823,0.0003,30]
[331259473,1720167794118,-1245.78959228,0.000409,120]
[331259474,1720167794147,-1355.1396273,0.00042616,90]
[331259475,1720167794180,-500.0,0.0004515,30]
[331259476,1720167794221,-186472.55399965,0.000545,120]
[331259477,1720167794248,-226.99264512,0.000545,120]
[331259478,1720167794274,-2003.54152635,0.000545,120]
[331259479,1720167794300,-200.0,0.00054501,120]
[331259480,1720167794327,-2218.88593545,0.00054501,120]
[331259481,1720167794353,-330.13089029,0.00054502,120]
[331259482,1720167794380,-330.13089029,0.00054502,120]
[331259483,1720167794406,-226.99264512,0.00054502,120]
[331259484,1720167794432,-208.81311248,0.00054504,120]
[331259485,1720167794460,-471.24813501,0.00054505,120]
[331259486,1720167794487,-2003.54152635,0.00054505,120]
[331259487,1720167794512,-230.01862371,0.00054506,120]
[331259488,1720167794538,-471.24813501,0.00054507,120]
[331259489,1720167794563,-200.0,0.00054508,120]
[331259490,1720167794788,-230.01862371,0.00054508,120]
[331259491,1720167794818,-518.88706999,0.00054509,120]
[331259492,1720167794846,-222.98006178,0.00054509,120]
[331259493,1720167794878,-226.99264512,0.00054509,120]
[331259494,1720167794904,-230.01862371,0.0005451,120]
[331259495,1720167794933,-208.81311248,0.0005451,120]
[331259496,1720167794961,-264.18454067,0.0005451,120]
[331259497,1720167794990,-222.98006178,0.00054512,120]
[331259498,1720167795016,-264.18454067,0.00054513,120]
[331259499,1720167795044,-230.01862371,0.00054513,120]
[331259500,1720167795072,-2003.54152635,0.00054513,120]
[331259501,1720167795100,-535.48183006,0.00054514,120]
[331259502,1720167795128,-226.99264512,0.00054515,120]
[331259503,1720167795155,-330.13089029,0.00054516,120]
[331259504,1720167795186,-226.99264512,0.00054516,120]
[331259505,1720167795214,-200.0,0.00054516,120]
[331259506,1720167795240,-226.99264512,0.00054517,120]
[331259507,1720167795268,-471.24813501,0.00054517,120]
[331259508,1720167795294,-471.24813501,0.00054517,120]
[331259509,1720167795321,-230.01862371,0.00054517,120]
[331259510,1720167795349,-2218.88593545,0.00054518,120]
[331259511,1720167795377,-230.01862371,0.00054518,120]
[331259512,1720167795408,-2218.88593545,0.00054519,120]
[331259513,1720167795435,-330.13089029,0.00054519,120]
[331259514,1720167795461,-518.88706999,0.00054519,120]
[331259515,1720167795489,-535.48183006,0.0005452,120]
[331259516,1720167795516,-2218.88593545,0.00054521,120]
[331259517,1720167795543,-173.0,0.00054548,120]
[331259518,1720167795571,-50804.9,0.0005477,120]
[331259519,1720167795598,-4268.89615684,0.00054794,30]
[331259520,1720167795633,-540.65936548,0.00054794,120]
[331259521,1720167795659,-500.0,0.00054794,120]
[331259522,1720167795687,-500.0,0.00054794,120]
[331259523,1720167795715,-500.0,0.00054794,120]
[331259524,1720167795742,-503.9272591,0.00054794,120]
[331259525,1720167795769,-500.0,0.00054794,120]
[331259526,1720167795795,-500.0,0.00054794,120]
[331259527,1720167795821,-500.0,0.00054794,120]
[331259528,1720167795847,-500.0,0.00054794,120]
[331259529,1720167795875,-429.8135391,0.00054794,120]
[331259530,1720167795902,-500.0,0.00054794,120]
[331259531,1720167795929,-500.71716809,0.00054794,120]
[331259532,1720167795956,-500.0,0.00054794,120]
[331259533,1720167795984,-558.4395214,0.00054794,120]
[331259534,1720167796010,-500.0,0.00054794,120]
[331259535,1720167796036,-201.27495479,0.00054794,120]
[331259536,1720167796062,-500.0,0.00054794,120]
[331259537,1720167796088,-502.35722004,0.00054794,120]
[331259538,1720167796116,-500.0,0.00054794,120]
[331259539,1720167796143,-459.34888184,0.00054794,120]
[331259540,1720167796171,-500.0,0.00054794,120]
[331259541,1720167796199,-498.34218285,0.00054794,120]
[331259542,1720167796226,-501.82851228,0.00054794,120]
[331259543,1720167796252,-500.0,0.00054794,120]
[331259544,1720167796279,-500.0,0.00054794,120]
[331259545,1720167796305,-500.0,0.00054794,120]
[331259546,1720167796332,-500.0,0.00054794,120]
[331259547,1720167796359,-500.0,0.00054794,120]
[331259548,1720167796385,-576.90917034,0.00054794,120]
[331259549,1720167796411,-552.47836493,0.00054794,120]
[331259550,1720167796437,-500.0,0.00054794,120]
[331259551,1720167796463,-500.0,0.00054794,120]
[331259552,1720167796488,-500.0,0.00054794,120]
[331259553,1720167796515,-500.0,0.00054794,120]
[331259554,1720167796540,-499.62354729,0.00054794,120]
[331259555,1720167796566,-500.0,0.00054794,120]
[331259556,1720167796596,-501.67264203,0.00054794,120]
[331259557,1720167796628,-500.0,0.00054794,120]
[331259558,1720167796655,-500.0,0.00054794,120]
[331259559,1720167796684,-500.0,0.00054794,120]
[331259560,1720167796711,-500.0,0.00054794,120]
[331259561,1720167796740,-500.0,0.00054794,120]
[331259562,1720167796767,-500.0,0.00054794,120]
[331259563,1720167796794,-500.0,0.00054794,120]
[331259564,1720167796819,-500.0,0.00054794,120]
[331259565,1720167796847,-500.0,0.00054794,120]
[331259566,1720167796874,-500.0,0.00054794,120]
[331259567,1720167796901,-500.0,0.00054794,120]
[331259568,1720167796928,-500.0,0.00054794,120]
[331259569,1720167796956,-517.47534174,0.00054794,120]
[331259570,1720167796983,-500.0,0.00054794,120]
[331259571,1720167797009,-297.79900676,0.00054794,120]
[331259572,1720167797036,-500.0,0.00054794,120]
[331259573,1720167797064,-500.0,0.00054794,120]
[331259574,1720167797091,-500.0,0.00054794,120]
[331259575,1720167797119,-500.0,0.00054794,120]
[331259576,1720167797148,-500.0,0.00054794,120]
[331259577,1720167797179,-500.0,0.00054794,120]
[331259578,1720167797208,-500.0,0.00054794,120]
[331259579,1720167797237,-462.74,0.00054794,120]
[331259580,1720167797264,-500.0,0.00054794,120]
[331259581,1720167797291,-500.0,0.00054794,120]
[331259582,1720167797318,-500.0,0.00054794,120]
[331259583,1720167797345,-500.0,0.00054794,120]
[331259584,1720167797372,-500.0,0.00054794,120]
[331259585,1720167797398,-500.0,0.00054794,120]
[331259586,1720167797426,-504.60198447,0.00054794,120]
[331259587,1720167797453,-500.00249118,0.00054794,120]
[331259588,1720167797480,-500.0,0.00054794,120]
[331259589,1720167797507,-505.75403512,0.00054794,120]
[331259590,1720167797535,-500.0,0.00054794,120]
[331259591,1720167797565,-500.0,0.00054794,120]
[331259592,1720167797593,-509.41292438,0.00054794,120]
[331259593,1720167797628,-500.0,0.00054794,120]
[331259594,1720167797819,-501.71266185,0.00054794,120]
[331259595,1720167797846,-500.0,0.00054794,120]
[331259596,1720167797874,-503.03262944,0.00054794,120]
[331259597,1720167797902,-500.0,0.00054794,120]
[331259598,1720167797928,-500.0,0.00054794,120]
[331259599,1720167797954,-500.0,0.00054794,120]
[331259600,1720167797981,-500.0,0.00054794,120]
[331259601,1720167798012,-562.45015135,0.00054794,120]
[331259602,1720167798039,-500.0,0.00054794,120]
[331259603,1720167798066,-502.37818112,0.00054794,120]
[331259604,1720167798093,-500.0,0.00054794,120]
[331259605,1720167798122,-500.0,0.00054794,120]
[331259606,1720167798149,-500.0,0.00054794,120]
[331259607,1720167798177,-500.0,0.00054794,120]
[331259608,1720167798205,-502.37138483,0.00054794,120]
[331259609,1720167798232,-500.0,0.00054794,120]
[331259610,1720167798259,-501.13255643,0.00054794,120]
[331259611,1720167798286,-612.62135519,0.00054794,120]
[331259612,1720167798315,-500.0,0.00054794,120]
[331259613,1720167798341,-500.0,0.00054794,120]
[331259614,1720167798368,-500.0,0.00054794,120]
[331259615,1720167798395,-500.0,0.00054794,120]
[331259616,1720167798421,-501.13871419,0.00054794,120]
[331259617,1720167798448,-500.0,0.00054794,120]
[331259618,1720167798474,-501.15087015,0.00054794,120]
[331259619,1720167798502,-500.0,0.00054794,120]
[331259620,1720167798530,-503.04172827,0.00054794,120]
[331259621,1720167798556,-502.83304486,0.00054794,120]
[331259622,1720167798582,-500.0,0.00054794,120]
[331259623,1720167798609,-501.82699777,0.00054794,120]
[331259624,1720167798637,-500.0,0.00054794,120]
[331259625,1720167798663,-500.96067034,0.00054794,120]
[331259626,1720167798690,-500.0,0.00054794,120]
[331259627,1720167798717,-500.0,0.00054794,120]
[331259628,1720167798744,-504.52849447,0.00054794,120]
[331259629,1720167798771,-500.0,0.00054794,120]
[331259630,1720167798797,-500.0,0.00054794,120]
[331259631,1720167798824,-502.79960513,0.00054794,120]
[331259632,1720167798850,-500.0,0.00054794,120]
[331259633,1720167798878,-501.63035607,0.00054794,120]
[331259634,1720167798905,-501.25392686,0.00054794,120]
[331259635,1720167798932,-500.0,0.00054794,120]
[331259636,1720167798958,-503.88667607,0.00054794,120]
[331259637,1720167798986,-500.0,0.00054794,120]
[331259638,1720167799014,-510.79911,0.00054794,120]
[331259639,1720167799041,-500.0,0.00054794,120]
[331259640,1720167799067,-501.50177363,0.00054794,120]
[331259641,1720167799094,-500.0,0.00054794,120]
[331259642,1720167799123,-500.0,0.00054794,120]
[331259643,1720167799151,-500.0,0.00054794,120]
[331259644,1720167799184,-500.0,0.00054794,120]
[331259645,1720167799212,-500.0,0.00054794,120]
[331259646,1720167799240,-208.67198124,0.00054794,120]
[331259647,1720167799268,-500.0,0.00054794,120]
[331259648,1720167799296,-504.21783139,0.00054794,120]
[331259649,1720167799324,-500.0,0.00054794,120]
[331259650,1720167799352,-500.0,0.00054794,120]
[331259651,1720167799381,-500.0,0.00054794,120]
[331259652,1720167799410,-500.0,0.00054794,120]
[331259653,1720167799437,-501.87275711,0.00054794,120]
[331259654,1720167799464,-500.0,0.00054794,120]
[331259655,1720167799492,-500.0,0.00054794,120]
[331259656,1720167799519,-500.0,0.00054794,120]
[331259657,1720167799546,-605.03233885,0.00054794,120]
[331259658,1720167799574,-500.0,0.00054794,120]
[331259659,1720167799600,-500.0,0.00054794,120]
[331259660,1720167799634,-503.59724438,0.00054794,120]
[331259661,1720167799662,-500.0,0.00054794,120]
[331259662,1720167799690,-500.0,0.00054794,120]
[331259663,1720167799717,-502.72110851,0.00054794,120]
[331259664,1720167799745,-500.0,0.00054794,120]
[331259665,1720167799772,-500.0,0.00054794,120]
[331259666,1720167799800,-500.0,0.00054794,120]
[331259667,1720167799828,-500.0,0.00054794,120]
[331259668,1720167799858,-500.0,0.00054794,120]
[331259669,1720167799886,-503.4974935,0.00054794,120]
[331259670,1720167799914,-500.0,0.00054794,120]
[331259671,1720167799941,-500.0,0.00054794,120]
[331259672,1720167799969,-500.0,0.00054794,120]
[331259673,1720167799996,-502.50941971,0.00054794,120]
[331259674,1720167800023,-170.84968817,0.00054794,120]
[331259675,1720167800051,-501.0489338,0.00054794,120]
[331259676,1720167800079,-500.0,0.00054794,120]
[331259677,1720167800108,-500.0,0.00054794,120]
[331259678,1720167800134,-500.0,0.00054794,120]
[331259679,1720167800162,-500.0,0.00054794,120]
[331259680,1720167800196,-598.59395419,0.00054794,120]
[331259681,1720167800225,-500.0,0.00054794,120]
[331259682,1720167800252,-501.47806808,0.00054794,120]
[331259683,1720167800279,-500.0,0.00054794,120]
[331259684,1720167800308,-501.1269577,0.00054794,120]
[331259685,1720167800335,-500.0,0.00054794,120]
[331259686,1720167800363,-500.0,0.00054794,120]
[331259687,1720167800390,-500.0,0.00054794,120]
[331259688,1720167800416,-501.13811532,0.00054794,120]
[331259689,1720167800443,-500.0,0.00054794,120]
[331259690,1720167800469,-500.0,0.00054794,120]
[331259691,1720167800496,-500.0,0.00054794,120]
[331259692,1720167800525,-500.0,0.00054794,120]
[331259693,1720167800553,-500.0,0.00054794,120]
[331259694,1720167800581,-500.0,0.00054794,120]
[331259695,1720167800610,-369.23553181,0.00054794,120]
[331259696,1720167800641,-501.33528353,0.00054794,120]
[331259697,1720167800669,-503.03580382,0.00054794,120]
[331259698,1720167800838,-500.0,0.00054794,120]
[331259699,1720167800867,-500.0,0.00054794,120]
[331259700,1720167800895,-507.10104638,0.00054794,120]
[331259701,1720167800923,-500.0,0.00054794,120]
[331259702,1720167800951,-500.0,0.00054794,120]
[331259703,1720167800978,-500.0,0.00054794,120]
[331259704,1720167801006,-520.93441128,0.00054794,120]
[331259705,1720167801033,-541.12968016,0.00054794,120]
[331259706,1720167801061,-500.0,0.00054794,120]
[331259707,1720167801090,-500.0,0.00054794,120]
[331259708,1720167801118,-500.0,0.00054794,120]
[331259709,1720167801145,-500.0,0.00054794,120]
[331259710,1720167801175,-500.0,0.00054794,120]
[331259711,1720167801204,-500.0,0.00054794,120]
[331259712,1720167801232,-500.0,0.00054794,120]
[331259713,1720167801261,-500.0,0.00054794,120]
[331259714,1720167801290,-500.0,0.00054794,120]
[331259715,1720167801321,-500.0,0.00054794,120]
[331259716,1720167801347,-500.0,0.00054794,120]
[331259717,1720167801375,-500.0,0.00054794,120]
[331259718,1720167801401,-500.0,0.00054794,120]
[331259719,1720167801427,-456.16503536,0.00054794,120]
[331259720,1720167801452,-500.0,0.00054794,120]
[331259721,1720167801479,-500.0,0.00054794,120]
[331259722,1720167801506,-500.0,0.00054794,120]
[331259723,1720167801534,-493.54957049,0.00054794,120]
[331259724,1720167801561,-505.17404619,0.00054794,120]
[331259725,1720167801588,-500.0,0.00054794,120]
[331259726,1720167801614,-501.35237309,0.00054794,120]
[331259727,1720167801644,-502.57699262,0.00054794,120]
[331259728,1720167801674,-500.0,0.00054794,120]
[331259729,1720167801703,-500.0,0.00054794,120]
[331259730,1720167801731,-500.0,0.00054794,120]
[331259731,1720167801758,-500.0,0.00054794,120]
[331259732,1720167801784,-500.0,0.00054794,120]
[331259733,1720167801811,-500.0,0.00054794,120]
[331259734,1720167801838,-500.0,0.00054794,120]
[331259735,1720167801866,-500.0,0.00054794,120]
[331259736,1720167801893,-205.50754196,0.00054794,120]
[331259737,1720167801919,-500.0,0.00054794,120]
[331259738,1720167801946,-299.40233945,0.00054794,120]
[331259739,1720167801972,-500.0,0.00054794,120]
[331259740,1720167801999,-500.7998407,0.00054794,120]
[331259741,1720167802026,-500.0,0.00054794,120]
[331259742,1720167802052,-500.0,0.00054794,120]
[331259743,1720167802080,-500.0,0.00054794,120]
[331259744,1720167802107,-500.0,0.00054794,120]
[331259745,1720167802134,-516.04794449,0.00054794,120]
[331259746,1720167802160,-501.47141652,0.00054794,120]
[331259747,1720167802192,-500.0,0.00054794,120]
[331259748,1720167802220,-502.1890244,0.00054794,120]
[331259749,1720167802247,-500.0,0.00054794,120]
[331259750,1720167802274,-500.65253296,0.00054794,120]
[331259751,1720167802300,-500.0,0.00054794,120]
[331259752,1720167802328,-500.0,0.00054794,120]
[331259753,1720167802357,-500.0,0.00054794,120]
[331259754,1720167802384,-500.0,0.00054794,120]
[331259755,1720167802421,-252.89802883,0.00054794,120]
[331259756,1720167802452,-594.06618827,0.00054794,120]
[331259757,1720167802481,-500.0,0.00054794,120]
[331259758,1720167802509,-504.28939996,0.00054794,120]
[331259759,1720167802536,-500.0,0.00054794,120]
[331259760,1720167802564,-505.81986898,0.00054794,120]
[331259761,1720167802591,-500.0,0.00054794,120]
[331259762,1720167802620,-500.0,0.00054794,120]
[331259763,1720167802653,-500.0,0.00054794,120]
[331259764,1720167802682,-500.0,0.00054794,120]
[331259765,1720167802712,-500.0,0.00054794,120]
[331259766,1720167802740,-174.2111673,0.00054794,120]
[331259767,1720167802769,-439.27439743,0.00054794,120]
[331259768,1720167802797,-500.0,0.00054794,120]
[331259769,1720167802825,-501.056318,0.00054794,120]
[331259770,1720167802853,-500.0,0.00054794,120]
[331259771,1720167802880,-557.11734085,0.00054794,120]
[331259772,1720167802907,-500.0,0.00054794,120]
[331259773,1720167802934,-314.35010426,0.00054794,120]
[331259774,1720167802961,-500.0,0.00054794,120]
[331259775,1720167802988,-500.0,0.00054794,120]
[331259776,1720167803015,-500.0,0.00054794,120]
[331259777,1720167803042,-500.0,0.00054794,120]
[331259778,1720167803068,-271.62420042,0.00054794,120]
[331259779,1720167803101,-501.69248024,0.00054794,120]
[331259780,1720167803131,-502.31005047,0.00054794,120]
[331259781,1720167803160,-500.0,0.00054794,120]
[331259782,1720167803194,-501.34339797,0.00054794,120]
[331259783,1720167803225,-500.0,0.00054794,120]
[331259784,1720167803256,-500.0,0.00054794,120]
[331259785,1720167803286,-500.0,0.00054794,120]
[331259786,1720167803316,-500.0,0.00054794,120]
[331259787,1720167803346,-500.0,0.00054794,120]
[331259788,1720167803377,-500.0,0.00054794,120]
[331259789,1720167803406,-500.0,0.00054794,120]
[331259790,1720167803436,-500.0,0.00054794,120]
[331259791,1720167803465,-500.0,0.00054794,120]
[331259792,1720167803493,-220.86276632,0.00054794,120]
[331259793,1720167803524,-500.0,0.00054794,120]
[331259794,1720167803553,-500.0,0.00054794,120]
[331259795,1720167803582,-500.0,0.00054794,120]
[331259796,1720167803615,-500.0,0.00054794,120]
[331259797,1720167803648,-500.0,0.00054794,120]
[331259798,1720167803677,-505.52593611,0.00054794,120]
[331259799,1720167803706,-500.0,0.00054794,120]
[331259800,1720167803734,-503.60833638,0.00054794,120]
[331259801,1720167803967,-500.0,0.00054794,120]
[331259802,1720167803996,-500.0,0.00054794,120]
[331259803,1720167804024,-456.38850082,0.00054794,120]
[331259804,1720167804052,-500.0,0.00054794,120]
[331259805,1720167804080,-500.0,0.00054794,120]
[331259806,1720167804109,-500.0,0.00054794,120]
[331259807,1720167804139,-500.0,0.00054794,120]
[331259808,1720167804169,-502.94938239,0.00054794,120]
[331259809,1720167804198,-500.0,0.00054794,120]
[331259810,1720167804227,-564.54378019,0.00054794,120]
[331259811,1720167804255,-500.0,0.00054794,120]
[331259812,1720167804283,-500.0,0.00054794,120]
[331259813,1720167804310,-500.0,0.00054794,120]
[331259814,1720167804337,-500.0,0.00054794,120]
[331259815,1720167804366,-501.42244113,0.00054794,120]
[331259816,1720167804393,-500.0,0.00054794,120]
[331259817,1720167804421,-541.32113649,0.00054794,120]
[331259818,1720167804447,-506.59350141,0.00054794,120]
[331259819,1720167804475,-500.0,0.00054794,120]
[331259820,1720167804502,-500.0,0.00054794,120]
[331259821,1720167804531,-500.0,0.00054794,120]
[331259822,1720167804558,-170.27338812,0.00054794,120]
[331259823,1720167804586,-648.83407313,0.00054794,120]
[331259824,1720167804614,-500.0,0.00054794,120]
[331259825,1720167804644,-500.0,0.00054794,120]
[331259826,1720167804673,-500.0,0.00054794,120]
[331259827,1720167804700,-500.0,0.00054794,120]
[331259828,1720167804731,-500.0,0.00054794,120]
[331259829,1720167804772,-504.55280258,0.00054794,120]